bitfinex/quotes_BTCUSD_20220218
["timestamp","ask_amount","ask_price","bid_price","bid_amount"]
[1645225514613,6.362e-05,40060.0,40055.0,0.010219]
[1645225515212,0.335101,40061.0,40055.0,0.010219]
[1645225515413,6.362e-05,40060.0,40056.0,0.25]
[1645225515612,6.362e-05,40060.0,40057.0,0.010219]
[1645225515811,0.33514,40059.0,40057.0,0.010219]
[1645225516073,0.33514,40059.0,40056.0,0.260219]
[1645225516269,6.362e-05,40060.0,40056.0,0.260219]
[1645225516468,0.33514,40063.0,40056.0,0.260219]
[1645225516667,6.362e-05,40060.0,40057.0,0.010219]
[1645225517668,0.33514,40063.0,40057.0,0.010219]
[1645225517870,6.362e-05,40061.0,40057.0,0.010219]
[1645225518869,0.33514,40063.0,40057.0,0.010219]
[1645225519070,6.362e-05,40061.0,40057.0,0.010219]
[1645225519372,0.33514,40063.0,40057.0,0.009806]
[1645225519373,0.33020362,40063.0,40057.0,0.009806]
[1645225521422,0.33020362,40063.0,40058.0,0.010219]
[1645225522024,0.6207068,40062.0,40058.0,0.010219]
[1645225522221,0.33514,40061.0,40058.0,0.010219]
[1645225522423,0.6207068,40060.0,40058.0,0.010219]
[1645225522623,0.335131,40059.0,40058.0,0.010219]
[1645225522824,0.335131,40059.0,40057.0,0.009806]
[1645225523023,0.335131,40058.0,40057.0,0.009806]
[1645225523224,0.6207068,40060.0,40057.0,0.009806]
[1645225523423,0.335131,40059.0,40056.0,0.5995673]
[1645225523666,0.6207068,40060.0,40056.0,0.5995673]
[1645225523865,0.6207068,40060.0,40056.0,0.460219]
[1645225524068,0.335131,40059.0,40056.0,0.260219]
[1645225524265,0.335131,40059.0,40056.0,0.460219]
[1645225524569,0.6207068,40060.0,40056.0,0.460219]
[1645225524766,0.6207068,40060.0,40056.0,0.010219]
[1645225524967,0.497584,40057.0,40052.0,0.010219]
[1645225525167,0.062453,40057.0,40051.0,0.010219]
[1645225525566,0.006,40059.0,40051.0,0.010219]
[1645225525967,0.106,40059.0,40051.0,0.010219]
[1645225526366,0.335131,40056.0,40051.0,0.010219]
[1645225528220,0.62031665,40055.0,40051.0,0.010219]
[1645225528618,6.362e-05,40057.0,40051.0,0.010219]
[1645225529619,0.335131,40056.0,40051.0,0.010219]
[1645225529822,6.362e-05,40057.0,40051.0,0.010219]
[1645225530720,0.335131,40056.0,40051.0,0.010219]
[1645225531170,0.33651858,40056.0,40048.0,0.010219]
[1645225531466,0.335131,40052.0,40048.0,0.010219]
[1645225531669,0.10138758,40056.0,40048.0,0.010219]
[1645225531866,0.335131,40055.0,40048.0,0.010219]
[1645225532266,0.15138758,40056.0,40048.0,0.005219]
[1645225532569,0.21384658,40056.0,40048.0,0.005219]
[1645225532766,0.062457,40054.0,40048.0,0.005219]
[1645225533370,0.15138758,40056.0,40048.0,0.005219]
[1645225534370,0.335131,40055.0,40048.0,0.005219]
[1645225536822,0.335131,40054.0,40048.0,0.005219]
[1645225537724,0.33005437,40054.0,40048.0,0.005219]
[1645225538876,0.3,40055.0,40048.0,0.005219]
[1645225539077,0.3,40055.0,40049.0,0.25]
[1645225539078,0.040148,40054.0,40049.0,0.25]
[1645225539375,0.335177,40061.0,40049.0,0.25]
[1645225539576,0.062449,40060.0,40052.0,0.010219]
[1645225539774,0.040149,40059.0,40052.0,0.010219]
[1645225541574,0.062453,40057.0,40052.0,0.010219]
[1645225541775,0.335177,40056.0,40052.0,0.010219]
[1645225542173,0.330177,40056.0,40052.0,0.010219]
[1645225543523,0.330177,40056.0,40049.0,0.25]
[1645225545631,0.3,40055.0,40048.0,0.005219]
[1645225545927,0.040149,40054.0,40048.0,0.005219]
[1645225546172,0.330177,40051.0,40048.0,0.005219]
[1645225546571,0.33049629,40051.0,40048.0,0.005219]
[1645225546771,0.33049629,40051.0,40035.0,0.1132]
[1645225546772,0.39296229,40051.0,40046.0,0.010219]
[1645225546972,0.63049629,40051.0,40045.0,0.010219]
[1645225547171,0.30031929,40051.0,40045.0,0.010219]
[1645225547371,0.335174,40050.0,40045.0,0.010219]
[1645225547571,0.33549329,40050.0,40045.0,0.010219]
[1645225548373,0.33549329,40050.0,40046.0,0.010219]
[1645225549076,0.33549329,40050.0,40047.0,0.010219]
[1645225549077,0.00031929,40050.0,40047.0,0.010219]
[1645225549274,0.3,40055.0,40047.0,0.010219]
[1645225549275,0.335174,40049.0,40047.0,0.010219]
[1645225549475,0.3,40055.0,40047.0,0.010219]
[1645225549476,0.335174,40048.0,40047.0,0.010219]
[1645225549677,0.00031929,40052.0,40047.0,0.010219]
[1645225549919,0.035152,40053.0,40049.0,0.010219]
[1645225550118,0.035152,40053.0,40050.0,0.010219]
[1645225550319,0.03547129,40053.0,40050.0,0.010219]
[1645225550517,0.03547129,40053.0,40049.0,0.010219]
[1645225550518,0.097611,40053.0,40049.0,0.010219]
[1645225550918,0.097611,40053.0,40050.0,0.010219]
[1645225551818,0.09793029,40053.0,40050.0,0.010219]
[1645225552820,0.07490439,40052.0,40050.0,0.010219]
[1645225553022,0.07490439,40052.0,40046.0,0.010219]
[1645225553023,0.062469,40050.0,40046.0,0.010219]
[1645225553232,0.635174,40051.0,40045.0,0.020438]
[1645225553233,0.062476,40047.0,40045.0,0.020438]
[1645225553423,0.124952,40048.0,40042.0,0.010219]
[1645225553424,0.635174,40046.0,40042.0,0.010219]
[1645225553679,0.685174,40046.0,40041.0,0.010219]
[1645225553883,0.685174,40046.0,40040.0,0.010219]
[1645225554081,0.097633,40043.0,40041.0,0.010219]
[1645225554380,0.097633,40043.0,40040.0,0.010219]
[1645225554980,0.01513226,40042.0,40037.0,0.010219]
[1645225555184,0.522624,40041.0,40035.0,0.010219]
[1645225555385,0.01386651,40039.0,40034.0,0.010219]
[1645225555581,0.06249,40037.0,40033.0,0.010219]
[1645225555787,0.335174,40036.0,40032.0,0.010219]
[1645225556882,0.334934,40036.0,40032.0,0.010219]
[1645225557081,0.334634,40036.0,40032.0,0.010219]
[1645225557320,0.062491,40035.0,40032.0,0.010219]
[1645225557518,0.034802,40034.0,40032.0,0.010219]
[1645225557719,0.034802,40034.0,40028.0,0.2284646]
[1645225557918,0.034802,40034.0,40029.0,0.010219]
[1645225558323,0.034802,40034.0,40032.0,3.0]
[1645225558519,0.097291,40034.0,40032.0,3.0]
[1645225558720,0.5163987,40033.0,40032.0,3.0]
[1645225558922,1.0010157,40033.0,40032.0,3.0]
[1645225559125,1.034957,40033.0,40032.0,3.0]
[1645225559724,0.734957,40033.0,40032.0,3.0]
[1645225561478,0.034801,40032.0,40031.0,0.010219]
[1645225561677,0.034801,40032.0,40030.0,0.010219]
[1645225561879,0.034801,40032.0,40029.0,0.010219]
[1645225573122,2.989781,40029.0,40028.0,0.00023681]
[1645225578471,3.325074,40029.0,40028.0,0.00023681]
[1645225578672,3.023906,40029.0,40028.0,0.00023681]
[1645225579472,3.325074,40029.0,40028.0,0.00023681]
[1645225580522,3.475074,40029.0,40028.0,0.00023681]
[1645225582124,3.723568,40029.0,40028.0,0.00023681]
[1645225593177,3.723568,40029.0,40021.0,0.31]
[1645225593375,0.034125,40028.0,40021.0,0.01]
[1645225595019,0.03271068,40028.0,40021.0,0.01]
[1645225599172,0.03271068,40028.0,40021.0,0.31]
[1645225599373,0.03271068,40028.0,40021.0,0.01]
[1645225600375,0.03271068,40028.0,40021.0,0.31]
[1645225601978,0.03271068,40028.0,40022.0,6.352e-05]
[1645225602822,0.03271068,40028.0,40021.0,0.31]
[1645225603022,0.03271068,40028.0,40023.0,6.352e-05]
[1645225604023,0.03271068,40028.0,40021.0,0.01]
[1645225604324,0.03271068,40028.0,40023.0,6.352e-05]
[1645225605324,0.03271068,40028.0,40021.0,0.01]
[1645225605526,0.0625,40027.0,40023.0,6.352e-05]
[1645225605724,0.385293,40026.0,40023.0,6.352e-05]
[1645225606573,0.385293,40026.0,40021.0,0.01]
[1645225606771,0.385293,40026.0,40022.0,6.352e-05]
[1645225607773,0.05,40026.0,40023.0,0.1]
[1645225607971,0.335341,40025.0,40023.0,0.1]
[1645225608973,3.31322241,40029.0,40023.0,0.1]
[1645225609175,0.335341,40028.0,40023.0,0.1]
[1645225610231,0.05,40027.0,40023.0,0.10006352]
[1645225610429,0.032655,40026.0,40023.0,0.10006352]
[1645225611128,0.335341,40025.0,40023.0,0.10006352]
[1645225611331,0.335341,40025.0,40023.0,0.1]
[1645225619525,0.335341,40025.0,40023.0,0.0999264]
[1645225624484,3.31322241,40029.0,40024.0,0.6393483]
[1645225624684,3.238275,40029.0,40028.0,0.4352674]
[1645225624936,2.37228494,40029.0,40028.0,0.4352674]
[1645225625138,0.25,40033.0,40029.0,0.3]
[1645225625337,0.25,40033.0,40031.0,0.26098274]
[1645225625539,0.25,40033.0,40032.0,0.4352674]
[1645225626737,0.25,40033.0,40032.0,0.97364599]
[1645225627338,0.25,40033.0,40032.0,0.87364599]
[1645225627738,0.25,40033.0,40032.0,0.5746157]
[1645225628972,0.25,40033.0,40032.0,0.6746157]
[1645225630575,0.25,40033.0,40032.0,0.0999264]
[1645225630778,0.25,40033.0,40032.0,0.4352674]
[1645225631276,0.25,40033.0,40032.0,0.5746157]
[1645225632319,0.25,40033.0,40032.0,0.4352674]
[1645225632522,0.25,40033.0,40032.0,0.0999264]
[1645225632720,0.25,40033.0,40032.0,0.7352674]
[1645225632920,0.25,40033.0,40032.0,0.3999264]
[1645225634023,0.25,40033.0,40032.0,0.9352674]
[1645225634223,0.25,40033.0,40032.0,1.0746157]
[1645225634623,0.25,40033.0,40032.0,0.9352674]
[1645225635125,0.25,40033.0,40032.0,1.0746157]
[1645225636178,0.245,40033.0,40032.0,1.0746157]
[1645225639280,0.245,40033.0,40032.0,1.2746157]
[1645225639681,0.245,40033.0,40032.0,1.1746157]
[1645225640123,0.245,40033.0,40032.0,0.8352674]
[1645225640326,0.245,40033.0,40032.0,0.3999264]
[1645225641234,0.245,40033.0,40032.0,0.0999264]
[1645225642023,0.245,40033.0,40032.0,0.4352674]
[1645225642224,0.245,40033.0,40032.0,0.0999264]
[1645225642426,0.245,40033.0,40032.0,0.4352674]
[1645225645174,0.245,40033.0,40032.0,1.0352674]
[1645225645374,0.245,40033.0,40032.0,1.1352674]
[1645225645774,0.245,40033.0,40032.0,0.7352674]
[1645225646274,0.245,40033.0,40032.0,1.0746157]
[1645225646474,0.245,40033.0,40032.0,0.7352674]
[1645225646874,0.245,40033.0,40032.0,0.3999264]
[1645225647324,0.245,40033.0,40032.0,0.7352674]
[1645225651184,0.245,40033.0,40032.0,0.9352674]
[1645225652183,0.245,40033.0,40032.0,0.5999264]
[1645225652383,0.245,40033.0,40032.0,0.9352674]
[1645225653488,0.245,40033.0,40032.0,1.2352674]
[1645225654926,0.34420878,40049.0,40038.0,0.31064355]
[1645225655128,0.006744,40044.0,40043.0,0.0999264]
[1645225655325,0.07490878,40049.0,40043.0,0.0999264]
[1645225655729,0.335341,40048.0,40043.0,0.0999264]
[1645225656626,0.07490878,40049.0,40043.0,0.0999264]
[1645225656827,0.335341,40048.0,40043.0,0.0999264]
[1645225657827,0.07490878,40049.0,40044.0,0.0999264]
[1645225658027,0.335341,40048.0,40040.0,0.0999264]
[1645225658228,0.335341,40048.0,40038.0,0.41056995]
[1645225658680,0.397808,40048.0,40038.0,0.41056995]
[1645225658878,0.335341,40048.0,40038.0,0.41056995]
[1645225659277,0.07490878,40049.0,40038.0,0.41056995]
[1645225659678,0.13737378,40049.0,40038.0,0.41056995]
[1645225659878,0.335341,40048.0,40038.0,0.41056995]
[1645225660078,0.335341,40048.0,40038.0,0.31064355]
[1645225660282,0.335341,40048.0,40038.0,0.41056995]
[1645225660481,0.07490878,40049.0,40043.0,0.0999264]
[1645225660682,0.335341,40048.0,40040.0,0.0999264]
[1645225661281,0.335341,40048.0,40038.0,0.31064355]
[1645225661483,0.12490878,40049.0,40040.0,0.0999264]
[1645225661686,0.335341,40048.0,40040.0,0.0999264]
[1645225662084,0.07490878,40049.0,40043.0,0.0999264]
[1645225662326,0.335341,40048.0,40040.0,0.0999264]
[1645225662526,0.335341,40046.0,40040.0,0.0999264]
[1645225662726,0.07490878,40049.0,40040.0,0.0999264]
[1645225662727,0.335341,40048.0,40040.0,0.0999264]
[1645225663328,0.335341,40048.0,40038.0,0.31064355]
[1645225663329,0.23805498,40045.0,40042.0,0.0999264]
[1645225663528,0.032655,40044.0,40038.0,0.61251474]
[1645225663728,0.23805498,40045.0,40038.0,0.61251474]
[1645225664729,0.23805498,40045.0,40038.0,0.51258834]
[1645225665131,0.23805498,40045.0,40039.0,0.0999264]
[1645225665830,0.23805498,40045.0,40038.0,0.51258834]
[1645225666090,0.19650878,40049.0,40044.0,0.0999264]
[1645225666281,0.19650878,40049.0,40038.0,0.51258834]
[1645225666282,0.07490878,40049.0,40045.0,0.0999264]
[1645225666485,0.335341,40048.0,40045.0,0.0999264]
[1645225666681,0.335341,40048.0,40038.0,0.51258834]
[1645225666984,0.335341,40048.0,40038.0,0.81258834]
[1645225667179,0.335341,40048.0,40038.0,0.51258834]
[1645225667180,0.25949726,40045.0,40038.0,0.51258834]
[1645225667382,0.032655,40044.0,40038.0,0.31064355]
[1645225667579,0.25949726,40045.0,40038.0,0.31064355]
[1645225668980,0.25949726,40045.0,40042.0,0.0999264]
[1645225669380,0.335341,40043.0,40042.0,0.0999264]
[1645225669584,0.032655,40043.0,40042.0,0.0999264]
[1645225670025,0.335341,40044.0,40042.0,0.0999264]
[1645225670624,0.032655,40043.0,40042.0,0.0999264]
[1645225671125,0.335341,40044.0,40042.0,0.0999264]
[1645225672725,0.25949726,40045.0,40042.0,0.0999264]
[1645225672926,0.335341,40044.0,40042.0,0.0999264]
[1645225673125,0.335341,40044.0,40038.0,0.31064355]
[1645225673325,0.25949726,40045.0,40039.0,0.0999264]
[1645225673981,0.335341,40044.0,40039.0,0.0999264]
[1645225674682,0.335341,40044.0,40038.0,0.31064355]
[1645225676778,0.335341,40044.0,40038.0,0.31057237]
[1645225678830,0.335341,40044.0,40040.0,0.0999264]
[1645225679428,0.07492406,40041.0,40040.0,0.0999264]
[1645225679628,0.25949726,40045.0,40040.0,0.0999264]
[1645225679828,0.335341,40044.0,40040.0,0.0999264]
[1645225680228,0.07492226,40042.0,40040.0,0.0999264]
[1645225680430,0.032655,40041.0,40040.0,0.0999264]
[1645225680632,0.335341,40041.0,40038.0,0.31057237]
[1645225681099,0.63263905,40041.0,40038.0,0.31057237]
[1645225681494,0.63263905,40041.0,40032.0,0.010219]
[1645225681495,0.032655,40039.0,40032.0,0.010219]
[1645225681694,0.58517265,40037.0,40029.0,0.00411453]
[1645225681892,0.69999392,40037.0,40029.0,0.00411453]
[1645225682291,0.22068259,40030.0,40029.0,0.00411453]
[1645225682492,0.25333759,40030.0,40029.0,0.00411453]
[1645225683491,0.22068259,40030.0,40029.0,0.00411453]
[1645225683691,0.55602359,40030.0,40029.0,0.00411453]
[1645225686123,0.55102359,40030.0,40029.0,0.00411453]
[1645225688025,0.55102359,40030.0,40024.0,0.002932]
[1645225688229,0.032655,40029.0,40024.0,0.002932]
[1645225689778,0.062503,40028.0,40024.0,0.002932]
[1645225689978,0.335341,40027.0,40024.0,0.002932]
[1645225690179,0.335341,40027.0,40023.0,0.0999264]
[1645225693335,0.335341,40027.0,40023.0,0.34746952]
[1645225693739,0.25,40028.0,40023.0,0.34746952]
[1645225695135,0.335341,40027.0,40023.0,0.34746952]
[1645225695334,0.25,40028.0,40023.0,0.34746952]
[1645225695539,0.335341,40027.0,40023.0,0.24754312]
[1645225695739,0.25,40028.0,40024.0,0.0999264]
[1645225697384,0.335341,40027.0,40024.0,0.0999264]
[1645225699185,0.25,40028.0,40024.0,0.3999264]
[1645225699387,0.1157,40034.0,40030.0,0.1393483]
[1645225699586,0.0749345,40035.0,40030.0,0.010219]
[1645225699832,0.05,40039.0,40030.0,0.010219]
[1645225700032,0.1232,40042.0,40033.0,0.010219]
[1645225700233,0.335341,40041.0,40036.0,0.26454707]
[1645225701435,0.335341,40042.0,40036.0,0.26454707]
[1645225701633,0.390244,40043.0,40037.0,0.0999264]
[1645225701834,0.3835,40043.0,40037.0,0.0999264]
[1645225702435,0.335341,40042.0,40037.0,0.3]
[1645225702635,0.3835,40043.0,40036.0,0.26454707]
[1645225702835,0.3835,40043.0,40037.0,0.3]
[1645225703235,0.3835,40043.0,40036.0,0.26454707]
[1645225703438,0.3835,40043.0,40037.0,0.0999264]
[1645225703683,0.3835,40043.0,40036.0,0.26454707]
[1645225703684,0.335341,40042.0,40036.0,0.26454707]
[1645225703884,0.3835,40043.0,40036.0,0.26454707]
[1645225704085,0.335341,40042.0,40036.0,0.26454707]
[1645225704284,0.335341,40041.0,40036.0,0.26454707]
[1645225704486,0.3835,40043.0,40036.0,0.26454707]
[1645225704784,0.3835,40043.0,40037.0,0.0999264]
[1645225705586,0.335341,40042.0,40037.0,0.0999264]
[1645225706389,0.445978,40043.0,40037.0,0.0999264]
[1645225706588,0.335341,40042.0,40037.0,0.0999264]
[1645225706788,0.445978,40043.0,40037.0,0.0999264]
[1645225706988,0.335341,40042.0,40037.0,0.0999264]
[1645225707188,0.445978,40043.0,40037.0,0.0999264]
[1645225707426,0.335341,40042.0,40037.0,0.0999264]
[1645225707926,0.335341,40042.0,40036.0,0.26454707]
[1645225708531,0.445978,40043.0,40036.0,0.26454707]
[1645225708730,0.335341,40041.0,40036.0,0.26454707]
[1645225708926,0.335341,40042.0,40036.0,0.26454707]
[1645225709127,0.445978,40043.0,40036.0,0.26454707]
[1645225709327,0.335256,40042.0,40037.0,0.010219]
[1645225709726,0.445978,40043.0,40037.0,0.010219]
[1645225709927,0.335256,40042.0,40037.0,0.010219]
[1645225710126,0.445978,40043.0,40037.0,0.010219]
[1645225710327,0.335256,40042.0,40037.0,0.010219]
[1645225711195,0.445978,40043.0,40037.0,0.010219]
[1645225711594,0.3835,40043.0,40037.0,0.010219]
[1645225711792,0.335256,40042.0,40037.0,0.010219]
[1645225713797,0.585256,40042.0,40037.0,0.010219]
[1645225715030,0.25,40042.0,40037.0,0.010219]
[1645225715230,0.335256,40041.0,40037.0,0.010219]
[1645225715430,0.0749255,40040.0,40037.0,0.010219]
[1645225717231,0.25,40042.0,40037.0,0.010219]
[1645225717431,0.335256,40041.0,40037.0,0.010219]
[1645225717730,0.25,40042.0,40037.0,0.010219]
[1645225717930,0.33402598,40041.0,40037.0,0.010219]
[1645225718132,0.25,40042.0,40037.0,0.010219]
[1645225718332,0.021913,40041.0,40037.0,0.010219]
[1645225718585,0.25,40042.0,40037.0,0.010219]
[1645225718778,0.335253,40041.0,40037.0,0.010219]
[1645225718981,0.25,40042.0,40037.0,0.010219]
[1645225720984,0.25,40042.0,40039.0,0.00071646]
[1645225720985,0.335253,40041.0,40039.0,0.00071646]
[1645225721182,0.25,40042.0,40039.0,0.00071646]
[1645225721382,0.335253,40041.0,40039.0,0.00071646]
[1645225722328,0.25,40042.0,40039.0,0.00071646]
[1645225722528,0.021913,40041.0,40039.0,0.00071646]
[1645225722929,0.25,40042.0,40039.0,0.00071646]
[1645225723130,0.335253,40041.0,40039.0,0.00071646]
[1645225724432,0.25,40042.0,40039.0,0.00071646]
[1645225724634,0.335253,40041.0,40039.0,0.00071646]
[1645225725233,0.335253,40041.0,40038.0,0.01251792]
[1645225725433,0.021913,40040.0,40038.0,0.01251792]
[1645225725635,0.021913,40041.0,40038.0,0.01251792]
[1645225726682,0.021913,40041.0,40040.0,0.26350515]
[1645225727681,0.335253,40041.0,40038.0,0.01251792]
[1645225728882,0.335253,40041.0,40040.0,0.21478584]
[1645225730834,0.335253,40041.0,40040.0,0.21744091]
[1645225731431,0.24943447,40042.0,40040.0,0.21744091]
[1645225732230,0.335253,40041.0,40040.0,0.21744091]
[1645225732831,0.24943447,40042.0,40040.0,0.51736731]
[1645225733031,0.24943447,40042.0,40041.0,0.1393483]
[1645225733234,0.24943447,40042.0,40041.0,0.4495673]
[1645225733435,0.24943447,40042.0,40041.0,0.8848203]
[1645225733696,0.24943447,40042.0,40041.0,0.9348203]
[1645225733896,0.00031929,40043.0,40042.0,0.65162394]
[1645225734094,0.25000069,40044.0,40043.0,0.335253]
[1645225734294,0.25000069,40044.0,40043.0,1.13707059]
[1645225734496,0.20000069,40044.0,40043.0,1.38699699]
[1645225734699,0.10000069,40044.0,40043.0,1.53699699]
[1645225735093,0.10000069,40044.0,40043.0,1.33699699]
[1645225735293,0.10000069,40044.0,40043.0,1.23699699]
[1645225735694,0.10000069,40044.0,40043.0,1.29944299]
[1645225736395,0.10000069,40044.0,40043.0,1.39944299]
[1645225736593,0.10000069,40044.0,40043.0,1.29944299]
[1645225736794,0.35000069,40044.0,40043.0,1.29944299]
[1645225736995,0.35000069,40044.0,40043.0,1.49745569]
[1645225740236,0.35000069,40044.0,40043.0,1.19944299]
[1645225740435,0.35000069,40044.0,40043.0,1.49944299]
[1645225740634,0.35066777,40044.0,40043.0,1.49944299]
[1645225741485,0.35066777,40044.0,40043.0,1.54944299]
[1645225741684,0.35066777,40044.0,40043.0,1.64944299]
[1645225741884,0.35066777,40044.0,40043.0,1.54944299]
[1645225742687,0.35066777,40044.0,40043.0,1.59944299]
[1645225743289,0.35066777,40044.0,40043.0,1.79744824]
[1645225744290,0.34066777,40044.0,40043.0,1.79744824]
[1645225745140,0.34066777,40044.0,40043.0,1.74744824]
[1645225745837,0.00160397,40045.0,40043.0,1.74744824]
[1645225746038,0.00160397,40045.0,40044.0,0.3091]
[1645225746241,0.00128468,40045.0,40044.0,0.644353]
[1645225746440,0.00128468,40045.0,40044.0,0.744353]
[1645225748582,0.25128468,40045.0,40044.0,0.744353]
[1645225751182,0.25128468,40045.0,40044.0,0.74567682]
[1645225751183,0.25,40045.0,40044.0,0.74567682]
[1645225751384,0.25,40045.0,40044.0,0.94367995]
[1645225751784,0.25,40045.0,40044.0,0.74567682]
[1645225752430,0.25,40045.0,40044.0,0.44567682]
[1645225753232,0.25,40045.0,40044.0,0.34567682]
[1645225755536,0.25,40045.0,40044.0,0.65546507]
[1645225756183,0.25,40045.0,40044.0,0.55347473]
[1645225756783,0.25,40045.0,40044.0,0.90347473]
[1645225756986,0.25,40045.0,40044.0,1.00347473]
[1645225757683,0.25,40045.0,40044.0,0.55347473]
[1645225757885,0.25,40045.0,40044.0,0.65347473]
[1645225759286,0.25,40045.0,40044.0,0.95347473]
[1645225760337,0.25,40045.0,40044.0,1.00347473]
[1645225760741,0.25,40045.0,40044.0,1.00515417]
[1645225763885,0.00031929,40049.0,40047.0,0.31571011]
[1645225764088,0.07490732,40050.0,40047.0,0.32592911]
[1645225764385,0.00031929,40049.0,40048.0,0.3393483]
[1645225764584,0.07490732,40050.0,40048.0,0.3495673]
[1645225764985,0.07490732,40050.0,40049.0,0.29247012]
[1645225766390,0.07490732,40050.0,40049.0,0.63794212]
[1645225766588,0.00031929,40052.0,40049.0,0.73794212]
[1645225766789,0.00031929,40053.0,40050.0,0.010219]
[1645225766992,0.006744,40054.0,40051.0,0.010219]
[1645225767191,0.00031929,40053.0,40052.0,0.010219]
[1645225767438,0.00031929,40057.0,40052.0,0.345472]
[1645225767637,0.00031929,40059.0,40053.0,0.010219]
[1645225767936,0.66613439,40061.0,40054.0,0.010219]
[1645225768137,0.36613439,40060.0,40055.0,0.2999264]
[1645225768339,0.31778668,40058.0,40056.0,0.21631242]
[1645225769535,0.31810597,40059.0,40057.0,0.1393483]
[1645225769735,0.31778668,40059.0,40057.0,0.1393483]
[1645225770137,0.65303968,40058.0,40057.0,0.2392747]
[1645225770338,0.31778668,40058.0,40057.0,0.2494937]
[1645225770537,0.31778668,40058.0,40057.0,0.2392747]
[1645225772182,0.31780399,40058.0,40057.0,0.2392747]
[1645225772583,0.335253,40058.0,40057.0,0.2392747]
[1645225773587,0.25,40059.0,40057.0,0.2392747]
[1645225774586,0.335253,40058.0,40057.0,0.2392747]
[1645225774829,0.25,40059.0,40056.0,0.22653142]
[1645225775031,0.37121658,40058.0,40056.0,0.21631242]
[1645225775230,0.37089729,40058.0,40056.0,0.21631242]
[1645225775432,0.37121658,40058.0,40056.0,0.21631242]
[1645225775635,0.37266833,40058.0,40056.0,0.21631242]
[1645225776936,0.37089729,40057.0,40056.0,0.21631242]
[1645225779085,0.36589729,40057.0,40056.0,0.21631242]
[1645225780584,0.12059988,40057.0,40056.0,0.21631242]
[1645225781187,0.12059988,40057.0,40056.0,0.21824548]
[1645225781389,0.00031929,40058.0,40056.0,0.21824548]
[1645225781586,0.25,40059.0,40056.0,0.21824548]
[1645225781786,0.12089236,40058.0,40056.0,0.21824548]
[1645225781985,0.25031929,40059.0,40056.0,0.21824548]
[1645225782187,0.12057212,40058.0,40056.0,0.21824548]
[1645225782438,0.12089141,40058.0,40056.0,0.21824548]
[1645225782638,0.00031929,40058.0,40056.0,0.21824548]
[1645225782838,0.25,40059.0,40056.0,0.21824548]
[1645225783039,0.12089144,40058.0,40056.0,0.21824548]
[1645225783242,0.25031929,40059.0,40056.0,0.21824548]
[1645225783439,0.1049572,40058.0,40056.0,0.21824548]
[1645225783640,0.00031929,40058.0,40056.0,0.21824548]
[1645225784042,0.25,40059.0,40056.0,0.21824548]
[1645225784243,0.10495601,40058.0,40056.0,0.21824548]
[1645225784443,0.25,40059.0,40056.0,0.21824548]
[1645225784643,0.10463638,40058.0,40056.0,0.21824548]
[1645225785045,0.10495567,40058.0,40056.0,0.21824548]
[1645225785243,0.00031929,40058.0,40056.0,0.21824548]
[1645225785442,0.25,40059.0,40056.0,0.21721694]
[1645225785843,0.10463541,40058.0,40056.0,0.22743594]
[1645225786091,0.37097592,40057.0,40056.0,0.22743594]
[1645225786287,0.37097592,40057.0,40056.0,0.21721694]
[1645225788387,0.37097592,40057.0,40056.0,0.19438535]
[1645225789486,0.00031929,40058.0,40056.0,0.19438535]
[1645225789487,0.37129521,40058.0,40056.0,0.19438535]
[1645225790935,0.37129521,40058.0,40057.0,0.2392747]
[1645225791138,0.37097592,40058.0,40057.0,0.2392747]
[1645225791934,0.37097592,40058.0,40056.0,0.19438535]
[1645225792134,0.37129521,40058.0,40056.0,0.19438535]
[1645225793236,0.37097592,40057.0,40056.0,0.19438535]
[1645225795988,0.37129521,40058.0,40056.0,0.19438535]
[1645225796290,0.25,40059.0,40056.0,0.3909989]
[1645225796291,0.31795966,40057.0,40056.0,0.3909989]
[1645225796486,0.31795966,40057.0,40056.0,0.6302736]
[1645225796887,0.00031929,40058.0,40056.0,0.6302736]
[1645225796888,0.37129521,40058.0,40056.0,0.6302736]
[1645225797187,0.37097592,40058.0,40056.0,0.6302736]
[1645225797433,0.37129521,40058.0,40056.0,0.00090452]
[1645225798335,0.37097592,40057.0,40056.0,0.00090452]
[1645225799839,0.5987178,40057.0,40056.0,0.00090452]
[1645225800039,0.5987178,40057.0,40056.0,0.00051844]
[1645225800040,0.5487178,40057.0,40056.0,0.00051844]
[1645225800241,0.124938,40054.0,40047.0,0.31864211]
[1645225800439,0.3710696,40049.0,40047.0,0.31571011]
[1645225800641,0.27712579,40048.0,40047.0,0.31571011]
[1645225800840,0.64819539,40048.0,40047.0,0.31571011]
[1645225801101,0.39055664,40048.0,40047.0,0.31571011]
[1645225801297,0.59055664,40048.0,40047.0,0.31571011]
[1645225801496,0.59055664,40048.0,40042.0,0.31637094]
[1645225801694,0.3180938,40043.0,40042.0,0.31637094]
[1645225801902,0.6533468,40043.0,40042.0,0.31637094]
[1645225802096,0.335253,40043.0,40042.0,0.31637094]
[1645225802895,0.6533595,40043.0,40042.0,0.31637094]
[1645225803496,0.335253,40043.0,40042.0,0.31637094]
[1645225804597,0.6533595,40043.0,40042.0,0.31637094]
[1645225804836,0.335253,40043.0,40042.0,0.31637094]
[1645225805637,0.00281718,40043.0,40042.0,0.31637094]
[1645225810896,0.07491418,40046.0,40042.0,0.31637094]
[1645225811097,0.335253,40045.0,40042.0,0.31637094]
[1645225811496,0.07491418,40046.0,40042.0,0.31637094]
[1645225811697,0.07491418,40046.0,40044.0,0.29653995]
[1645225812948,0.345472,40051.0,40050.0,0.19954219]
[1645225813847,0.6635785,40051.0,40050.0,0.19954219]
[1645225814246,0.6585785,40051.0,40050.0,0.19954219]
[1645225814646,0.340472,40051.0,40050.0,0.19954219]
[1645225814850,0.335253,40051.0,40050.0,0.19954219]
[1645225815947,0.335253,40051.0,40046.0,0.14625834]
[1645225816189,0.335253,40051.0,40046.0,0.24618474]
[1645225816390,0.6533595,40051.0,40046.0,0.14625834]
[1645225816590,0.6533595,40051.0,40046.0,0.24618474]
[1645225816789,0.6533595,40051.0,40046.0,0.14625834]
[1645225816990,0.20147659,40049.0,40046.0,0.14625834]
[1645225817189,0.021913,40048.0,40046.0,0.14625834]